Cogmind - Beta 15 @@@ ROGUE MODE // 2025.05.27 @ 14:32:51 Player: BVrutally Odd Result: Escaped! Performance ------------- Evolutions (9) 4500 Regions Visited (12) 2400 Robots Destroyed (135) 675 Value Destroyed (3268) 3268 Prototype IDs (36) 720 Alien Tech Used (0) 0 Bonus (3426) 3426 TOTAL SCORE: 14989 Bonus ------- High Alert Combat Kills 126 Aligned with FarCom 300 Win 3000 Cogmind --------- Core Integrity 1600/1600 Matter 260/300 Energy 341/350 System Corruption 0% Temperature Cool (22) Movement Flying (24) Location To Epsilon Eridani Parts ------- > --- POWER (1) -------- Quantum Reactor > --- PROPULSION (7) --- Cooled VTOL Module Impulse Thruster Field Propulsion Array Q-thruster Improved Q-thruster Improved Q-thruster > --- UTILITY (15) ----- Structural Scanner Machine Analyzer Enhanced Optical Array Improved Signal Interpreter Improved Melee Analysis Suite Improved Light Armor Plating Hacking Suite Hacking Suite Hacking Suite Hacking Suite Hacking Suite Advanced Hacking Suite Advanced Hacking Suite System Shield System Shield > --- WEAPON (2) ------- Enhanced Hardcell Cannon Power Sword > --- INVENTORY (5) ---- Heavy Rocket Launcher Improved Plasma Cutter Power Sword Peak State ------------ > --- POWER ------------ Quantum Reactor > --- PROPULSION ------- Cooled VTOL Module Impulse Thruster Field Propulsion Array Q-thruster Improved Q-thruster Improved Q-thruster > --- UTILITY ---------- Structural Scanner Machine Analyzer Enhanced Optical Array Improved Signal Interpreter Improved Melee Analysis Suite Improved Light Armor Plating Hacking Suite Hacking Suite Hacking Suite Hacking Suite Hacking Suite Advanced Hacking Suite Advanced Hacking Suite System Shield System Shield > --- WEAPON ----------- Enhanced Hardcell Cannon Power Sword > --- INVENTORY -------- Heavy Rocket Launcher Improved Plasma Cutter Power Sword [Rating: 130] Favorites ----------- Power Ion Engine Engine Ion Engine Power Core Light Fission Core Reactor Quantum Reactor Propulsion Light Treads Treads Light Treads Hover Unit Antigrav Array Flight Unit Cesium-ion Thruster Utility Hacking Suite Device Structural Scanner Storage High-capacity Storage Unit Processor Improved Signal Interpreter Hackware Hacking Suite Protection Light Armor Plating Weapon Beamcaster Energy Gun Beamcaster Energy Cannon Advanced Beam Cannon Ballistic Gun Enhanced Autogun Ballistic Cannon Light Cannon Launcher Grenade Launcher Impact Weapon Power Maul Slashing Weapon Power Sword Build | -11 -10 -10 -10 -9 -8 -7 -6 -5 -4 -3 -2 -1 ------- Run | Yrd Mat Min Exi Min Mat Fac Fac Fac Fac Res Res Acc Slots Evolved 18 | . . . . . 4 2 2 2 2 2 2 2 Power . | . . . . . . . . . . . . . Propulsion 5 | . . . . . 3 . 1 . 1 . . . Utility 13 | . . . . . 1 2 1 2 1 2 2 2 Weapon . | . . . . . . . . . . . . . Parts Attached 102 | 7 12 2 4 . 36 11 6 6 2 8 6 2 Power 9 | 1 1 . 1 . 2 2 1 . . . 1 . Engine 3 | 1 . . 1 . . 1 . . . . . . Core 5 | . 1 . . . 2 1 1 . . . . . Reactor 1 | . . . . . . . . . . . 1 . Propulsion 30 | 2 4 . 1 . 13 3 . . . 4 3 . Treads 19 | 2 4 . 1 . 12 . . . . . . . Leg . | . . . . . . . . . . . . . Wheel . | . . . . . . . . . . . . . Hover 2 | . . . . . . . . . . 2 . . Flight 9 | . . . . . 1 3 . . . 2 3 . Utility 35 | 2 3 1 1 . 7 5 2 6 2 3 1 2 Device 8 | 1 . . . . 3 2 . 1 1 . . . Storage 4 | 1 2 . 1 . . . . . . . . . Processor 5 | . . . . . 1 1 1 1 . . . 1 Hackware 11 | . . . . . . 2 . 4 1 2 1 1 Protection 7 | . 1 1 . . 3 . 1 . . 1 . . Artifact . | . . . . . . . . . . . . . Weapon 28 | 2 4 1 1 . 14 1 3 . . 1 1 . Energy Gun 5 | 2 1 1 . . 1 . . . . . . . Energy Cannon 1 | . . . . . 1 . . . . . . . Ballistic Gun 8 | . 2 . . . 6 . . . . . . . Ballistic Cannon 4 | . . . 1 . 2 . . . . . 1 . Launcher 5 | . . . . . 3 . 2 . . . . . Special Weapon . | . . . . . . . . . . . . . Impact Weapon 3 | . 1 . . . 1 1 . . . . . . Slashing Weapon 2 | . . . . . . . 1 . . 1 . . Piercing Weapon . | . . . . . . . . . . . . . Special Melee Weapon . | . . . . . . . . . . . . . Unidentified Prototypes 9 | . . . . . 4 2 . 1 1 . 1 . Parts Lost 13 | . 3 2 . . 6 . . 1 . . 1 . Power 4 | . 1 1 . . 1 . . . . . 1 . Propulsion 4 | . . . . . 3 . . 1 . . . . Utility 3 | . . 1 . . 2 . . . . . . . Weapon 2 | . 2 . . . . . . . . . . . Highest Loss Streak 4 | . 2 1 . . 4 . . 1 . . 1 . To Critical Strikes . | . . . . . . . . . . . . . Average Backups 12 | 2 8 13 12 14 16 13 14 11 4 3 3 3 Power . | . 1 1 . . . . . . 1 . . . Propulsion 3 | 1 4 4 4 5 3 . . . . . . . Utility 4 | . . 2 3 3 5 7 9 6 1 . . . Weapon 4 | . 2 5 4 5 7 5 5 4 1 1 1 2 Tool/Special . | . . . . . . . . . . . . . Unused Backups 13 | . 4 . . . 2 1 . 3 . 1 . 2 Power . | . . . . . . . . . . . . . Propulsion 4 | . 3 . . . . . . . . 1 . . Utility 3 | . . . . . . . . 3 . . . . Weapon 5 | . 1 . . . 2 1 . . . . . 1 Tool/Special 1 | . . . . . . . . . . . . 1 Average Slot Usage (%) 91 | . 99 87 93 100 97 75 79 78 67 77 94 95 Engine 4 | . 6 . 7 14 5 4 . . . . . . Core 3 | . 6 2 . . 3 2 5 3 . 1 . . Treads 23 | . 28 28 28 28 44 . . . . . . . Flight 4 | . . . . . . 14 20 15 10 11 24 24 Device 4 | . 9 . . . 5 3 5 4 4 4 4 4 Storage 9 | . 14 14 14 14 9 7 6 3 . . . . Processor 4 | . . . . . 2 11 12 12 15 14 13 16 Hackware 6 | . . . . . . 14 13 22 26 29 33 35 Protection 7 | . 4 13 14 14 8 . . . . 1 4 4 Energy Gun 8 | . 21 14 14 14 6 . . . . . . . Ballistic Gun 6 | . 6 14 5 . 8 7 7 . . . . . Ballistic Cannon 2 | . . . 8 14 2 . . . . . 2 4 Impact Weapon 1 | . . . . . . 6 3 5 5 1 . . Peak Build Rating 130 | 7 10 12 15 16 41 66 74 83 56 102 123 130 Average Rating 34 | 5 8 10 13 15 31 62 72 73 50 71 114 129 On Entrance 42 | . 7 10 12 15 16 41 65 74 48 50 93 123 Naked Turns . | . . . . . . . . . . . . . Heaviest Build 61 | 13 30 30 56 56 61 34 34 34 7 14 40 40 Greatest Support 100 | 40 40 40 40 40 100 55 60 60 10 25 53 53 Greatest Overweight (x) 6 | . . . 1 1 . 6 . 3 . . . . Average Overweight (x) . | . . . . 1 . . . . . . . . Largest Inventory Capacity 20 | 8 15 15 20 20 20 20 15 15 5 5 5 5 Average Capacity 15 | 7 9 15 15 20 20 15 15 12 5 5 5 5 Most Carried 20 | 4 11 15 15 19 20 20 15 15 4 5 5 4 Average Carried 13 | 2 8 14 14 17 19 13 14 11 4 3 3 3 Final Capacity 20 | 8 15 15 20 20 20 15 15 5 5 5 5 5 Final Carried 20 | 4 11 15 15 19 20 15 15 5 4 3 5 3 Class Distribution -------------------- 57% | Mutant 14% | Hacker-Scout 13% | Scavenger-Mutant 7% | Hacker-Mutant 7% | Wizard-Scout Dominant Class ---------------- Mutant | -10/Materials Mutant | -10/Mines Mutant | -10/Exiles Mutant | -9/Mines Mutant | -8/Materials Hacker-Mutant | -7/Factory Hacker-Scout | -6/Factory Hacker-Scout | -5/Factory Hacker-Scout | -4/Factory Wizard-Scout | -3/Research Wizard-Scout | -2/Research Wizard-Scout | -1/Access Resources | -11 -10 -10 -10 -9 -8 -7 -6 -5 -4 -3 -2 -1 ----------- Run | Yrd Mat Min Exi Min Mat Fac Fac Fac Fac Res Res Acc Matter Collected 2833 | 206 183 71 . 80 1167 275 521 73 46 100 81 30 Remotely . | . . . . . . . . . . . . . Salvage Created 4721 | 28 702 278 . 169 1751 326 811 197 105 243 . 111 Parts 250 | 2 62 19 . 13 104 16 15 8 3 6 . 2 Haulers Intercepted 15 | . 2 . . . 4 2 3 . 1 2 . 1 Recyclers Shooed 7 | . . 1 . . 2 . 4 . . . . . Parts Field Recycled . | . . . . . . . . . . . . . Retrieved Matter . | . . . . . . . . . . . . . Parts Self-Destructed . | . . . . . . . . . . . . . Prevented . | . . . . . . . . . . . . . Kills | -11 -10 -10 -10 -9 -8 -7 -6 -5 -4 -3 -2 -1 ------- Run | Yrd Mat Min Exi Min Mat Fac Fac Fac Fac Res Res Acc Combat Hostiles Destroyed 73 | . 15 10 . 7 34 . 5 2 . . . . Melee 2 | . . . . . . . . 2 . . . . Guns 45 | . 14 10 . 6 14 . 1 . . . . . Cannons 4 | . . . . 1 3 . . . . . . . AOE 20 | . . . . . 16 . 4 . . . . . Classes Destroyed 14 | 1 8 . . 1 3 . 1 . . . . . Worker 13 | . 2 . . 1 8 1 . 1 . . . . Builder 7 | . 1 . . . 4 2 . . . . . . Tunneler 2 | 1 . . . . 1 . . . . . . . Hauler 15 | . 2 . . . 4 2 3 . 1 2 . 1 Recycler 8 | . 1 . . . 2 2 3 . . . . . Operator 10 | . 1 . . . 3 2 1 1 1 1 . . Watcher 7 | . 2 . . . . 1 1 2 . 1 . . Swarmer 23 | . 6 6 . 4 3 . 4 . . . . . Grunt 35 | . 9 4 . 2 20 . . . . . . . Brawler 1 | . . . . 1 . . . . . . . . Sentry 7 | . . . . . 7 . . . . . . . Hunter 3 | . . . . . 3 . . . . . . . Programmer 3 | . . . . . . . 1 2 . . . . Heavy 1 | . . . . . 1 . . . . . . . Best Kill Streak 11 | 1 4 4 . 4 11 2 5 2 1 1 . 1 Combat Bots Only 6 | . 3 4 . 4 6 . 4 1 . . . . Max Kills in Single Turn 3 | 1 2 1 . 1 3 1 3 1 1 1 . 1 Gunslinging 1 | . 1 . . . . . . . . . . . Exploded 3 | . . . . . 3 . 3 . . . . . Melee 1 | . . . . . . . . 1 . . . . Uniques/NPCs Destroyed . | . . . . . . . . . . . . . Combat | -11 -10 -10 -10 -9 -8 -7 -6 -5 -4 -3 -2 -1 -------- Run | Yrd Mat Min Exi Min Mat Fac Fac Fac Fac Res Res Acc Hostile Shots Fired 411 | . 78 61 . 15 177 11 16 27 . . 26 . Missed 137 | . 17 18 . 4 63 6 7 10 . . 12 . Hits 274 | . 61 43 . 11 114 5 9 17 . . 14 . Projectile 274 | . 61 43 . 11 114 5 9 17 . . 14 . Critical Strikes 9 | . 1 2 . . 3 . . 2 . . 1 . Damage Taken 4338 | . 650 402 . 106 1788 51 145 949 . . 247 . Core 538 | . 91 38 . 27 120 5 22 149 . . 86 . Absorbed by Shields . | . . . . . . . . . . . . . Redirected to Shielding 20 | . . . . . . . 20 . . . . . Core Remaining (%) 89 | 100 . . . 37 78 99 97 85 100 100 94 100 Volleys Fired 271 | 5 58 32 . 10 111 12 36 . . . 2 5 Largest 2 | 2 2 2 . 2 2 1 2 . . . 1 1 Hottest 120 | 100 100 60 . 105 120 25 78 . . . 58 58 Shots Fired 506 | 10 114 64 . 20 207 12 72 . . . 2 5 Gun 421 | 10 114 64 . 10 143 12 68 . . . . . Cannon 58 | . . . . 10 41 . . . . . 2 5 Launcher 27 | . . . . . 23 . 4 . . . . . Special . | . . . . . . . . . . . . . Kinetic 254 | . 18 32 . 10 107 12 68 . . . 2 5 Thermal 210 | 10 96 32 . 10 62 . . . . . . . Explosive 27 | . . . . . 23 . 4 . . . . . Electromagnetic 15 | . . . . . 15 . . . . . . . Robot Hit Streak 17 | 5 11 17 . 11 14 4 9 . . . . . Robot Miss Streak 4 | 1 4 3 . 3 4 2 3 . . . . . Penetration Max 1 | . . . . . 1 . . . . . . . Secondary Targets 3 | . 1 1 . . 1 . . . . . . . Max Gunslinging Chain 1 | . 1 1 . . 1 . . . . . . . Shots Hit Robots 355 | 6 67 35 . 10 120 18 60 18 2 10 1 8 Core Hits 191 | 2 38 17 . 8 95 6 16 3 1 3 . 2 Critical Kills 1 | . . . . . . 1 . . . . . . Critical Parts Destroyed 3 | . . . . . 1 . 2 . . . . . Critical Strikes 26 | 1 6 . . 3 7 1 2 3 . 1 . 2 Burn 15 | 1 6 . . 3 5 . . . . . . . Blast 1 | . . . . . 1 . . . . . . . Smash 4 | . . . . . 1 1 2 . . . . . Sever 6 | . . . . . . . . 3 . 1 . 2 Melee Attacks 130 | . 1 . . . 8 25 17 33 6 19 10 11 Impact 58 | . 1 . . . 8 25 14 7 2 1 . . Slashing 72 | . . . . . . . 3 26 4 18 10 11 Piercing . | . . . . . . . . . . . . . Sneak Attacks 19 | . . . . . 1 6 4 2 1 3 1 1 Combat Hostiles . | . . . . . . . . . . . . . Follow-up Attacks 5 | . . . . . . . . 3 . 2 . . Damage Inflicted 11293 | 74 846 407 . 229 4514 953 2044 886 144 681 91 424 Guns 4231 | 74 846 395 . 146 1757 138 875 . . . . . Cannons 824 | . . . . 73 751 . . . . . . . Explosions 2163 | . . . . . 1747 . 416 . . . . . Melee 4024 | . . . . . 230 815 753 886 144 681 91 424 Ramming 51 | . . 12 . 10 29 . . . . . . . Kinetic 2827 | . 78 201 . 73 1462 138 875 . . . . . Thermal 2125 | 74 768 194 . 146 943 . . . . . . . Explosive 2129 | . . . . . 1713 . 416 . . . . . Electromagnetic 137 | . . . . . 137 . . . . . . . Impact 2142 | . . . . . 230 815 753 198 97 49 . . Slashing 1882 | . . . . . . . . 688 47 632 91 424 Piercing . | . . . . . . . . . . . . . Highest Corruption 7 | . . . . . 5 . 1 7 . . 1 . Average Corruption 4 | . . . . . 5 . 1 4 . . 1 . Corruption Purged . | . . . . . . . . . . . . . Corruption Blocked . | . . . . . . . . . . . . . Effects 43 | . . . . . 34 . 2 7 . . . . Message Errors 12 | . . . . . 10 . 1 1 . . . . Matter Fused 9 | . . . . . 5 . . 4 . . . . Heat Flow Errors 8 | . . . . . 7 . . 1 . . . . Energy Discharges 3 | . . . . . 2 . . 1 . . . . Parts Rejected 1 | . . . . . 1 . . . . . . . Data Loss (minor) 2 | . . . . . 2 . . . . . . . Data Loss (major) 3 | . . . . . 3 . . . . . . . Misfires 1 | . . . . . . . 1 . . . . . Alerts 2 | . . . . . 2 . . . . . . . Weapon Failures 2 | . . . . . 2 . . . . . . . Overload Shots . | . . . . . . . . . . . . . Overflow Damage 1068 | . . . . . 139 302 327 102 77 121 . . Projectiles 7 | . . . . . 7 . . . . . . . Explosions 109 | . . . . . 99 . 10 . . . . . Melee 952 | . . . . . 33 302 317 102 77 121 . . Knockbacks 7 | . . . . 2 3 1 1 . . . . . Impact 3 | . . . . . 1 1 1 . . . . . Kinetic 4 | . . . . 2 2 . . . . . . . Secondary . | . . . . . . . . . . . . . Self-Inflicted Damage 158 | . . . . . 158 . . . . . . . Shots 6 | . . . . . 6 . . . . . . . Rammed 6 | . . 3 . 1 2 . . . . . . . Targets Rammed 8 | . . 3 . 2 3 . . . . . . . Kicked . | . . . . . . . . . . . . . Crushed 2 | . . . . 1 1 . . . . . . . Highest Temperature 297 | 117 297 54 . 192 233 6 78 248 . . 39 12 Average Temperature 51 | 51 82 21 . 93 56 5 23 93 . . 15 4 Received Heat Transfer 1044 | . 234 138 . 36 594 6 . . . . 36 . Effects 1 | . 1 . . . . . . . . . . . Interference 1 | . 1 . . . . . . . . . . . Siege Activations . | . . . . . . . . . . . . . Martial Activations . | . . . . . . . . . . . . . Shielding Activations . | . . . . . . . . . . . . . Robots Disrupted . | . . . . . . . . . . . . . Combat Hostiles . | . . . . . . . . . . . . . Robots Corrupted 9 | . . . . . 1 3 4 1 . . . . Combat Hostiles 1 | . . . . . 1 . . . . . . . Parts Fried 15 | . . . . . . 4 7 3 1 . . . Impact Corruptions 24 | . . . . . 1 10 9 2 1 1 . . Robots Melted 1 | . 1 . . . . . . . . . . . Combat Hostiles 1 | . 1 . . . . . . . . . . . Parts Melted 9 | . 5 . . . 4 . . . . . . . Heat Transferred 5891 | 296 2678 425 . 481 2011 . . . . . . . Parts Sabotaged . | . . . . . . . . . . . . . Parts Stolen . | . . . . . . . . . . . . . Parts Stripped . | . . . . . . . . . . . . . Power Chain Reactions 1 | . . . . . 1 . . . . . . . Alert | -11 -10 -10 -10 -9 -8 -7 -6 -5 -4 -3 -2 -1 ------- Run | Yrd Mat Min Exi Min Mat Fac Fac Fac Fac Res Res Acc Maximum Alert Level 2 | . . . . . 2 1 . . . . . . Low Security (%) 79 | 100 100 100 . 100 45 29 100 100 100 100 100 100 Level 1 8 | . . . . . 11 70 . . . . . . Level 2 11 | . . . . . 43 . . . . . . . Level 3 . | . . . . . . . . . . . . . Level 4 . | . . . . . . . . . . . . . Level 5 . | . . . . . . . . . . . . . High Security . | . . . . . . . . . . . . . Max Security . | . . . . . . . . . . . . . Peak Influence 691 | 5 165 92 . 120 691 302 158 80 15 30 76 35 Initial 291 | . . 10 . . . 291 74 72 11 . . 31 Average 137 | . 85 23 . 22 341 236 77 26 5 8 30 25 Influence Increases 3322 | 5 497 290 . 195 1322 155 265 233 18 117 171 54 Destroy 0b10 Robot/C 1460 | . 300 200 . 140 680 . 100 40 . . . . Destroy 0b10 Robot/NC 305 | 5 45 . . 5 110 45 40 20 10 20 . 5 Destroy Leader 370 | . 68 30 . 20 198 4 26 14 2 6 . 2 Successful Hack 197 | . 9 . . . 6 31 24 38 . 60 21 8 Disable Machine 150 | . 15 . . 15 105 15 . . . . . . Destroy Structure 300 | . . . . . 163 15 30 16 6 16 30 24 Partial Spotted 165 | . . . . . . 15 45 45 . 15 30 15 Lose Combat Pursuer 375 | . 60 60 . 15 60 30 . 60 . . 90 . Influence Decreases 3287 | 5 470 317 . 195 680 645 268 358 40 119 119 71 Entered New Map 559 | . . 17 . . . 351 78 77 13 2 . 21 Time Decay 2512 | 5 440 260 . 195 620 294 190 271 27 97 63 50 Lost Part 120 | . 30 20 . . 60 . . 10 . . . . Lost Ally 20 | . . 20 . . . . . . . . . . Purge Threat 76 | . . . . . . . . . . 20 56 . Squads Dispatched 26 | . 3 1 . . 6 2 3 6 . 2 3 . Investigation 9 | . 3 . . . 1 . 1 3 . 1 . . Extermination 5 | . . . . . . 1 1 2 . . 1 . Reinforcement 10 | . . . . . 4 1 1 1 . 1 2 . Assault 1 | . . 1 . . . . . . . . . . Garrison 1 | . . . . . 1 . . . . . . . Intercept . | . . . . . . . . . . . . . Searches Triggered . | . . . . . . . . . . . . . Construction Impeded 2 | . . . . . 2 . . . . . . . Haulers Reinforced 3 | . . . . . . 1 . . . 1 1 . Active Scanning Responses . | . . . . . . . . . . . . . Cargo Convoy Interrupts . | . . . . . . . . . . . . . Stealth | -11 -10 -10 -10 -9 -8 -7 -6 -5 -4 -3 -2 -1 --------- Run | Yrd Mat Min Exi Min Mat Fac Fac Fac Fac Res Res Acc Distress Signals 14 | . 2 . . . 4 2 . 2 1 . 3 . Communications Jammed . | . . . . . . . . . . . . . Distress Signals . | . . . . . . . . . . . . . Times Spotted 146 | . 24 16 . 7 49 6 11 10 3 6 14 . Peak Tracking Total 9 | . 4 4 . 4 5 3 4 4 4 1 9 . Tactical Retreats 18 | . 3 3 . 1 4 1 . 3 . . 3 . Traps | -11 -10 -10 -10 -9 -8 -7 -6 -5 -4 -3 -2 -1 ------- Run | Yrd Mat Min Exi Min Mat Fac Fac Fac Fac Res Res Acc Traps Triggered 5 | . 3 . . . 1 . . 1 . . . . Indirectly . | . . . . . . . . . . . . . Trap Hack Attempts . | . . . . . . . . . . . . . Triggered . | . . . . . . . . . . . . . Disarmed . | . . . . . . . . . . . . . Reprogrammed . | . . . . . . . . . . . . . Reused . | . . . . . . . . . . . . . Traps Extracted . | . . . . . . . . . . . . . Installed . | . . . . . . . . . . . . . Triggered . | . . . . . . . . . . . . . Machines | -11 -10 -10 -10 -9 -8 -7 -6 -5 -4 -3 -2 -1 ---------- Run | Yrd Mat Min Exi Min Mat Fac Fac Fac Fac Res Res Acc Machines Disabled 10 | . 1 . . 1 7 1 . . . . . . Max in Single Turn 2 | . 1 . . 1 2 1 . . . . . . Garrison Access 5 | . . . . . 1 1 . . . 1 1 1 Machines Repaired . | . . . . . . . . . . . . . Machines Dismantled . | . . . . . . . . . . . . . Machines Sabotaged . | . . . . . . . . . . . . . Overloaded Fab Kills . | . . . . . . . . . . . . . Hacking | -11 -10 -10 -10 -9 -8 -7 -6 -5 -4 -3 -2 -1 --------- Run | Yrd Mat Min Exi Min Mat Fac Fac Fac Fac Res Res Acc Machines Accessed 48 | . 4 . 1 . 3 7 6 10 1 8 4 4 Terminals 29 | . 4 . . . 2 4 4 5 1 5 2 2 Fabricators 12 | . . . . . . 1 2 5 . 2 1 1 Repair Stations . | . . . . . . . . . . . . . Recycling Units . | . . . . . . . . . . . . . Scanalyzers . | . . . . . . . . . . . . . Garrison Access 6 | . . . . . 1 2 . . . 1 1 1 Total Hacks 114 | . 10 . 1 . 8 15 19 23 4 23 6 5 Successful 61 | . 2 . 1 . 2 6 6 17 2 16 4 5 Failed 53 | . 8 . . . 6 9 13 6 2 7 2 . Catastrophic 10 | . 2 . . . 2 2 . 2 1 . 1 . Database Lockouts . | . . . . . . . . . . . . . Manual 58 | . 10 . 1 . 6 8 6 11 3 10 2 1 Terminals 78 | . 10 . . . 6 8 14 14 4 16 3 3 Fabricators 23 | . . . . . . 1 5 9 . 6 1 1 Repair Stations . | . . . . . . . . . . . . . Recycling Units . | . . . . . . . . . . . . . Scanalyzers . | . . . . . . . . . . . . . Garrison Access 12 | . . . . . 2 6 . . . 1 2 1 Terminal Hacks 27 | . 1 . 1 . . 2 2 6 1 9 2 3 Part Schematic 2 | . . . . . . . . 2 . . . . Prototype ID Bank 1 | . . . . . . . . . . 1 . . Open Door 1 | . . . . . . . . . . . . 1 Level Access Points 4 | . . . . . . . 1 . . 1 1 1 Branch Access Points 1 | . . . . . . . . . . . . 1 Machine Index 1 | . . . . . . . . . . 1 . . Terminal Index 1 | . . . . . . . . 1 . . . . Fabricator Index 1 | . . . . . . . . 1 . . . . Unreport Threat 3 | . . . . . . . . . . 2 1 . Locate Traps 3 | . . . . . . . . 2 . 1 . . Recall Reinforcements 1 | . 1 . . . . . . . . . . . Hauler Manifests 3 | . . . . . . . 1 . . 2 . . Registered Components 2 | . . . . . . 1 . . . 1 . . Registered Prototypes 2 | . . . . . . 1 . . 1 . . . Proto ID Catalog 1 | . . . 1 . . . . . . . . . Fabricator Hacks 13 | . . . . . . . 2 8 . 1 1 1 Network Status 6 | . . . . . . . 2 1 . 1 1 1 Load Schematic 3 | . . . . . . . . 3 . . . . Build 4 | . . . . . . . . 4 . . . . Repair Station Hacks . | . . . . . . . . . . . . . Recycling Unit Hacks . | . . . . . . . . . . . . . Scanalyzer . | . . . . . . . . . . . . . Garrison Access Hacks 5 | . . . . . 1 1 . . . 1 1 1 Seal Access 5 | . . . . . 1 1 . . . 1 1 1 Unauthorized Hacks 16 | . 1 . . . 1 3 2 3 1 5 . . Terminals 11 | . 1 . . . 1 2 1 3 1 2 . . Assimilate 3 | . . . . . . 1 . . . 2 . . Botnet 4 | . . . . . . . . 3 1 . . . Operators 4 | . 1 . . . 1 1 1 . . . . . Fabricators 5 | . . . . . . 1 1 . . 3 . . Liberate 1 | . . . . . . . . . . 1 . . Fabnet 1 | . . . . . . . . . . 1 . . Haulers 3 | . . . . . . 1 1 . . 1 . . Repair Stations . | . . . . . . . . . . . . . Recycling Units . | . . . . . . . . . . . . . Scanalyzers . | . . . . . . . . . . . . . Garrison Access . | . . . . . . . . . . . . . Data Cores Recovered 4 | . . . . . . 1 . 1 1 1 . . Used 1 | . . . . . . . . 1 . . . . Hacking Detections 37 | . 3 . . . 3 4 5 9 1 7 3 2 Full Trace Events 6 | . 1 . . . . . 1 3 . 1 . . Feedback Events . | . . . . . . . . . . . . . Feedback Blocked . | . . . . . . . . . . . . . Robot Schematics Acquired . | . . . . . . . . . . . . . Robots Built . | . . . . . . . . . . . . . Authchips . | . . . . . . . . . . . . . Time . | . . . . . . . . . . . . . Total Robot Build Rating . | . . . . . . . . . . . . . Part Schematics Acquired 2 | . . . . . . . . 2 . . . . Parts Built 5 | . . . . . . . . 5 . . . . Authchips . | . . . . . . . . . . . . . Time 329 | . . . . . . . . 329 . . . . Total Part Build Rating 32 | . . . . . . . . 32 . . . . Parts Repaired . | . . . . . . . . . . . . . Time . | . . . . . . . . . . . . . Parts Recycled . | . . . . . . . . . . . . . Recycled Matter . | . . . . . . . . . . . . . Retrieved Matter . | . . . . . . . . . . . . . Retrieved Components . | . . . . . . . . . . . . . Parts Scanalyzed . | . . . . . . . . . . . . . Part Schematics Acquired . | . . . . . . . . . . . . . Parts Damaged . | . . . . . . . . . . . . . Bothacking | -11 -10 -10 -10 -9 -8 -7 -6 -5 -4 -3 -2 -1 ------------ Run | Yrd Mat Min Exi Min Mat Fac Fac Fac Fac Res Res Acc Used RIF Installer . | . . . . . . . . . . . . . Robots Hacked . | . . . . . . . . . . . . . Non-combat . | . . . . . . . . . . . . . Combat . | . . . . . . . . . . . . . Robot Hacks Applied . | . . . . . . . . . . . . . Relay Couplers Released . | . . . . . . . . . . . . . Fabnet Peak Effective % 3 | . . . . . . . . . . . 3 1 Robots Rewired . | . . . . . . . . . . . . . Allies Hacked . | . . . . . . . . . . . . . Hacks Repelled . | . . . . . . . . . . . . . Allies | -11 -10 -10 -10 -9 -8 -7 -6 -5 -4 -3 -2 -1 -------- Run | Yrd Mat Min Exi Min Mat Fac Fac Fac Fac Res Res Acc Total Allies 5 | . . 1 . 1 . 1 . . . 2 . . Largest Group 1 | . . 1 . 1 . . . . . 1 . . Highest-Rated Group 45 | . . 31 . 31 . . . . . 45 . . Highest-Rated Ally 45 | . . 31 . 31 . . . . . 45 . . Total Orders . | . . . . . . . . . . . . . Ally Attacks 5 | . . 5 . . . . . . . . . . Total Damage 64 | . . 64 . . . . . . . . . . Kills . | . . . . . . . . . . . . . Allies Corrupted . | . . . . . . . . . . . . . Allies Melted . | . . . . . . . . . . . . . Intel | -11 -10 -10 -10 -9 -8 -7 -6 -5 -4 -3 -2 -1 ------- Run | Yrd Mat Min Exi Min Mat Fac Fac Fac Fac Res Res Acc Active Infowar (turns) 3844 | 14 813 . . . 541 651 397 713 104 304 199 108 Optics 1005 | . . . . . 540 357 . . . . . 108 Sensors 1 | . . . . . 1 . . . . . . . Structural 2017 | . . . . . . 294 381 699 101 253 181 108 Seismic 827 | 14 813 . . . . . . . . . . . Machine Analysis 1824 | . . . . . . . 396 713 104 304 199 108 Robot Analysis Total . | . . . . . . . . . . . . . Derelict Logs Recovered 3 | . . 2 . 1 . . . . . . . . Drone Launches . | . . . . . . . . . . . . . Drone Recoveries . | . . . . . . . . . . . . . Exploration | -11 -10 -10 -10 -9 -8 -7 -6 -5 -4 -3 -2 -1 ------------- Run | Yrd Mat Min Exi Min Mat Fac Fac Fac Fac Res Res Acc Turns Passed 8577 | 111 1198 1137 467 1006 2180 653 397 713 104 304 199 108 Spaces Moved 7259 | 55 525 617 271 373 814 1135 577 1050 213 725 623 281 Core 5 | 5 . . . . . . . . . . . . Treads 2650 | 50 525 617 271 373 814 . . . . . . . Legs . | . . . . . . . . . . . . . Wheels . | . . . . . . . . . . . . . Hover . | . . . . . . . . . . . . . Flight 4604 | . . . . . . 1135 577 1050 213 725 623 281 Fastest Speed 23 | 50 160 160 160 240 160 39 34 32 32 28 23 24 Average Speed 84 | 150 160 160 170 240 164 39 34 33 32 30 24 24 Slowest Speed 435 | 160 160 160 240 240 166 435 34 248 32 32 28 24 Overloaded Moves . | . . . . . . . . . . . . . Propulsion Burnouts . | . . . . . . . . . . . . . Robots Hopped 29 | . . . . . . . 4 15 . 5 5 . Potential Cave-ins . | . . . . . . . . . . . . . Cave-ins Triggered . | . . . . . . . . . . . . . Exploration Rate (%) 39 | 4 84 98 69 52 61 31 20 24 8 22 23 12 Regions Visited 12 Branch Regions 3 Pre-discovered Areas . | . . . . . . . . . . . . . Known Exits Taken 7 | . . . . . 1 1 1 1 1 1 1 . Unknown Exits Taken 5 | 1 1 1 1 1 . . . . . . . . Scrap Searched 2 | . . 1 . 1 . . . . . . . . Spaces Dug 56 | . . . . . . 15 4 8 3 8 10 8 Terrain Destroyed 293 | . . . . . 201 15 40 8 3 8 10 8 Melee 49 | . . . . . . 15 4 8 3 8 8 3 Projectile 15 | . . . . . 8 . . . . . 2 5 AOE 229 | . . . . . 193 . 36 . . . . . Terrain Rammed . | . . . . . . . . . . . . . Walls Destroyed . | . . . . . . . . . . . . . Machines Disabled . | . . . . . . . . . . . . . Actions | -11 -10 -10 -10 -9 -8 -7 -6 -5 -4 -3 -2 -1 --------- Run | Yrd Mat Min Exi Min Mat Fac Fac Fac Fac Res Res Acc Total 8997 | 70 772 707 279 462 1428 1283 690 1349 237 773 648 299 Wait 1117 | . 152 50 . 74 410 67 45 271 15 24 8 1 Move 7193 | 54 524 616 270 372 813 1134 568 1023 212 714 613 280 Hop 24 | . . . . . . . 4 11 . 5 4 . Pick Up 54 | 4 13 4 1 4 9 11 2 3 . 1 2 . Fast Attach 38 | 7 1 . . . 11 4 1 2 1 6 5 . Attach 24 | . 2 1 1 . 5 4 2 3 1 2 1 2 Detach 5 | . . . . . 1 1 . 1 . 1 1 . Swap 81 | . 11 1 3 . 39 8 13 3 1 1 1 . Drop 61 | . 10 . 4 . 18 17 2 5 1 2 2 . Fire 271 | 5 58 32 . 10 111 12 36 . . . 2 5 Melee 121 | . 1 . . . 8 25 17 27 6 17 9 11 Ram . | . . . . . . . . . . . . . Kick . | . . . . . . . . . . . . . Crush 8 | . . 3 . 2 3 . . . . . . . Escape Stasis . | . . . . . . . . . . . . . Rewire . | . . . . . . . . . . . . . Trap . | . . . . . . . . . . . . . Miscellaneous . | . . . . . . . . . . . . . Route ------- -11/Scrapyard -10/Materials (discovered 4 exits: *Mat x2 / [*Min x2]) -10/Mines (discovered 3 exits: *Mat x2 / *Exi) -10/Exiles -9/Mines -8/Materials (discovered 2 exits: *Fac x2) -7/Factory (discovered 3 exits: *Fac / *Low x2) -6/Factory (discovered 4 exits: *Fac x4) -5/Factory -4/Factory (discovered 2 exits: *Res / *Upp) -3/Research (discovered 4 exits: *Res x3 / *Tes) -2/Research (discovered 3 exits: *Acc x3) -1/Access (discovered 2 exits: *Sur / Com) To Epsilon Eridani History --------- Turn | Location | Event 5 | -11/Scrapyard | Discovered new exit (range 14) 112 | -11/Scrapyard | Entered Materials 176 | -10/Materials | Discovered new exit (range 10) 309 | -10/Materials | Build established: Mutant 564 | -10/Materials | Discovered new exit (range 6) 987 | -10/Materials | Discovered new exit (range 10) 1252 | -10/Materials | Discovered new exit (range 16) 1310 | -10/Materials | Entered Mines 1344 | -10/Mines | Received a Rocket Launcher from a helpful Derelict 1488 | -10/Mines | Learned 8 Materials zone layouts 1606 | -10/Mines | Met a Derelict testing a Signal Generator 1661 | -10/Mines | Found Signal Generator 1710 | -10/Mines | Core integrity fell below 50% 1985 | -10/Mines | Discovered new exit (range 8) 1987 | -10/Mines | Discovered new exit (range 10) 2048 | -10/Mines | Identified exit to Materials 2447 | -10/Mines | Entered Exiles 2491 | -10/Exiles | Met 8R-AWN 2513 | -10/Exiles | Met EX-HEX 2559 | -10/Exiles | Met EX-BIN 2580 | -10/Exiles | Aligned with FarCom system 2582 | -10/Exiles | Given EX-Vault access code 2620 | -10/Exiles | Opened EX-Vault 2642 | -10/Exiles | Found Flying Fortress v7 2676 | -10/Exiles | Warned to stay clear of 0b10 Research branches 2718 | -10/Exiles | Met EX-DEC 2892 | -10/Exiles | Discovered new exit (range 10) 2914 | -10/Exiles | Left Exiles lab with Flying Fortress v7 2914 | -10/Exiles | Entered Mines 2915 | -9/Mines | Assembled infested the area 2951 | -9/Mines | Met a Derelict bent on vengeance 3089 | -9/Mines | Received a Mining Laser from a helpful Derelict 3280 | -9/Mines | Learned Materials interactive machine intel 3292 | -9/Mines | Found a hidden stash of uninstalled traps 3318 | -9/Mines | Found a damaged Exp. Sensor Array with a note attached 3323 | -9/Mines | Found Prototype Device 3906 | -9/Mines | Discovered new exit (range 7) 3920 | -9/Mines | Entered Materials 3920 | -8/Materials | Evolved 4 slots: Propulsion x3, Utility x1 3921 | -8/Materials | Identified exit to Factory 3922 | -8/Materials | Loaded intel: 19 interactive machine locations 3923 | -8/Materials | Identified Exp. Sensor Array 4320 | -8/Materials | Discovered exit to Factory (range 5) 5135 | -8/Materials | Garrison activated, responded to threat 5179 | -8/Materials | Lost 4 parts (1p2n1u) 5183 | -8/Materials | Build established: Scavenger-Mutant 6100 | -8/Materials | Entered Factory 6100 | -7/Factory | Evolved 2 slots: Utility x2 6336 | -7/Factory | Discovered new exit (range 5) 6338 | -7/Factory | Discovered new exit (range 17) 6338 | -7/Factory | Identified exit to Lower Caves 6401 | -7/Factory | Build established: Hacker-Mutant 6719 | -7/Factory | Discovered new exit (range 10) 6753 | -7/Factory | Identified exit to Factory 6753 | -7/Factory | Entered another Factory area 6753 | -6/Factory | Evolved 2 slots: Propulsion x1, Utility x1 7037 | -6/Factory | Build established: Hacker-Scout 7116 | -6/Factory | Identified exit to Factory 7150 | -6/Factory | Entered another Factory area 7150 | -5/Factory | Evolved 2 slots: Utility x2 7224 | -5/Factory | Discovered new exit (range 3) 7225 | -5/Factory | Identified exit to Factory 7410 | -5/Factory | Fabricated Adv. Hacking Suite? 7510 | -5/Factory | Fabricated Adv. Hacking Suite? 7584 | -5/Factory | Fabricated Adv. System Shield? 7646 | -5/Factory | Fabricated Nanoactuators? 7863 | -5/Factory | Entered another Factory area 7863 | -4/Factory | Evolved 2 slots: Propulsion x1, Utility x1 7917 | -4/Factory | Discovered new exit (range 15) 7922 | -4/Factory | Discovered new exit (range 11) 7922 | -4/Factory | Identified exit to Upper Caves 7925 | -4/Factory | Identified exit to Research 7967 | -4/Factory | Entered Research 7967 | -3/Research | Evolved 2 slots: Utility x2 8127 | -3/Research | Discovered new exit (range 5) 8128 | -3/Research | Identified exit to Testing 8173 | -3/Research | Discovered new exit (range 16) 8187 | -3/Research | Identified exit to Research 8264 | -3/Research | Build established: Wizard-Scout 8271 | -3/Research | Entered another Research area 8271 | -2/Research | Evolved 2 slots: Utility x2 8376 | -2/Research | Spotted B-90 Cyclops 8381 | -2/Research | Identified exit to Access 8409 | -2/Research | Spotted B-90 Cyclops 8470 | -2/Research | Entered Access 8470 | -1/Access | Evolved 2 slots: Utility x2 8516 | -1/Access | Identified exit to Surface 8516 | -1/Access | Identified exit to Command 8578 | *** | Escaped! Last Messages --------------- 08530_ Scanalyzer x2 08531_ U-05 Engineer builds a Wall. 08546_ >> Machine Analyzer network decryption results: 08546_ Garrison Access x1 08549_ >> Machine Analyzer network decryption results: 08549_ Fabricator x2 08551_ K-01 Serf cleans the Fabricator. 08554_ Connecting with Fabricator... >>Network(Status) Querying network status... 3 records found: (39,59) - Loaded: T-07 Excavator (85,59) - Loaded: Adv. Heavy Siege Treads (203,104) - Building: Cmb. Linear Gravjet 08576_ Connecting with Terminal... >>Open(Door) Sealed Barrier opened. 08577_ The Access Shell folds into the floor. Map ----- +----------------------------------------------------+ | ?????????????????????????????????????????????????? | | ?????????????????????????????????????????????????? | | ?????????????????????????????????????????????????? | | ?????????????????????????????????????????????????? | | #????????????????????????????????????????????????? | | #????????????????????????????????????????????????? | | #????????????????????????????????????????????????? | | #????????????????????????????????????????????????? | | #????????????????????????????????????????????????? | | #??## ??????????????????????????????????? | | ###+#######??????????????????????????????????? | | ##??????????????????????????????????? | | ##??????????????????????????????????? | | #####"# ##??????????????????????????????????? | | #+######"## ##??????????????????????????????????? | | ### ##??????????????????????????????????? | | !! ### ##??????????????????????????????????? | | ! ### ##???#####??????????????????????????? | | ### ###################?????????????????? | | ### ####### ###########?????????????????? | | " ### """T""" ""?????????????????? | | """ ### """ """ "????BB????????????? | | """ ### "????BB????????????? | | " ### "??????????????????? | | ! ### "" "??????????????????? | | ### k @" "??????????????????? | | ####+###### "??????????????????? | | ##### "????BB????????????? | | ?????????## "????BB????????????? | | ?????????## ""?????????????????? | | ?????????## ####### ###########?????????????????? | | ?????????## ###################?????????????????? | | ?????????## ##???#####??????????????????????????? | | ?????????## ##??????????????????????????????????? | | ?????????## # ???"??????????????????????????????? | | ?????????## + ??"""?????????????????????????????? | | ?????????## # ?"""??????????????????????????????? | | ????????? # ??"???????????????????????????????? | | ????????? +???????????????????????????????????? | | ?????????#####???????????????????????????????????? | | ?????????#####???????????????????????????????????? | | ?????????????????????????????????????????????????? | | ?????????????????????????????????????????????????? | | ?????????????????????????????????????????????????? | | ?????????????????????????????????????????????????? | | ?????????????????????????????????????????????????? | | ?????????????????????????????????????????????????? | | ?????????????????????????????????????????????????? | | ?????????????????????????????????????????????????? | | ?????????????????????????????????????????????????? | +----------------------------------------------------+ Best States ------------- Heat Dissipation 52 Energy Generation 25 Energy Capacity 350 Matter Stores 300 Matter Capacity 300 Sight Range 22 Terrain Scan Density 10 Armor Coverage 300 Propulsion Shielding 66 Evasion (%) 65 Melee Accuracy 6 Recoil Reduction 5 Offensive Hacking 78 Defensive Hacking 20 Item Schematics ----------------- Adv. Hacking Suite | -5/Factory | Hacked Adv. System Shield | -5/Factory | Hacked Robot Schematics ------------------ None Fabricated ------------ Adv. Hacking Suite | x1 | -5/Factory Adv. Hacking Suite | x1 | -5/Factory Adv. System Shield | x1 | -5/Factory Nanoactuators | x2 | -5/Factory | Preloaded Repaired ---------- Nothing Alien Tech Used ----------------- None Achievements -------------- None Challenges ------------ None Game ------ Seed SigixTransmissionModule Manual? 0 Play Time 01:19:31 Cumulative 325.5 hours Start 2025.05.27 @ 12:28:40 End 2025.05.27 @ 14:32:51 Sessions 3 Manual Loads 0 Difficulty Rogue Special Mode None Game No. 156 Rogue 93 Adventurer 16 Explorer 47 Win Type 0 Total 42 Types 24/5/6/1/0/1/2/1/1/1 Lore% 92 Gallery% 87 Achievement% 83 Wizard Run 0 Options --------- Layout 2 ASCII 0 Keyboard 0 Movement Mouse Keybinds 0 Fullscreen 1 Font 32/Tamsyn Map View 50x44 Zoom Use 0% Tactical HUD 1 Map Filters NONE Filters NONE Steam 1 RUN: 589a6302-7bdd-4030-97c7-8164f316d976